[Event "Titled Tuesday Blitz May 10 Late 2022"]
[White "Nozdrachev, Leonid"]
[Black "Fawzy, Adham"]
[WhiteFideId "24113433"]
[BlackFideId "10613129"]
[WhiteElo "2527"]
[BlackElo "2801"]
[Result "0-1"]
[Round "03"]
[TimeControl "180+1"]
[Date "2022.05.11"]
[WhiteClock "0:00:01"]
[BlackClock "0:00:31"]

1. e4 {[%clk 0:02:59]}  c5 {[%clk 0:03:00]} 2. c3 {[%clk 0:02:58]}  Nf6 {[%clk 0:02:59]} 3. e5 {[%clk 0:02:58]}  Nd5 {[%clk 0:02:59]} 4. d4 {[%clk 0:02:58]}  cxd4 {[%clk 0:03:00]} 5. Nf3 {[%clk 0:02:57]}  Nc6 {[%clk 0:03:00]} 6. Bc4 {[%clk 0:02:58]}  Nb6 {[%clk 0:03:00]} 7. Bb3 {[%clk 0:02:57]}  d6 {[%clk 0:03:00]} 8. exd6 {[%clk 0:02:51]}  Qxd6 {[%clk 0:03:01]} 9. Nxd4 {[%clk 0:02:46]}  Nxd4 {[%clk 0:02:59]} 10. Qxd4 {[%clk 0:02:47]}  Qxd4 {[%clk 0:02:59]} 11. cxd4 {[%clk 0:02:48]}  e6 {[%clk 0:02:55]} 12. Nc3 {[%clk 0:02:46]}  Bd7 {[%clk 0:02:56]} 13. O-O {[%clk 0:02:43]}  Bc6 {[%clk 0:02:55]} 14. a4 {[%clk 0:02:41]}  O-O-O {[%clk 0:02:54]} 15. Bg5 {[%clk 0:02:36]}  Rxd4 {[%clk 0:02:51]} 16. a5 {[%clk 0:02:36]}  Nc4 {[%clk 0:02:30]} 17. Rfd1 {[%clk 0:02:19]}  Rxd1+ {[%clk 0:02:08]} 18. Rxd1 {[%clk 0:02:04]}  Nd6 {[%clk 0:01:37]} 19. f3 {[%clk 0:01:56]}  h6 {[%clk 0:01:34]} 20. Bf4 {[%clk 0:01:51]}  Nf5 {[%clk 0:01:32]} 21. Kf1 {[%clk 0:01:48]}  Bc5 {[%clk 0:01:31]} 22. Na4 {[%clk 0:01:42]}  Be3 {[%clk 0:01:26]} 23. Be5 {[%clk 0:01:39]}  Rd8 {[%clk 0:01:19]} 24. Nc3 {[%clk 0:01:27]}  Rxd1+ {[%clk 0:01:17]} 25. Nxd1 {[%clk 0:01:28]}  Bd4 {[%clk 0:01:18]} 26. Bxd4 {[%clk 0:01:13]}  Nxd4 {[%clk 0:01:19]} 27. Ba2 {[%clk 0:01:13]}  Kc7 {[%clk 0:01:18]} 28. Nc3 {[%clk 0:01:13]}  Kd6 {[%clk 0:01:19]} 29. b4 {[%clk 0:01:11]}  Nb5 {[%clk 0:01:15]} 30. Nxb5+ {[%clk 0:01:08]}  Bxb5+ {[%clk 0:01:16]} 31. Kf2 {[%clk 0:01:09]}  g5 {[%clk 0:01:16]} 32. Ke3 {[%clk 0:01:09]}  f5 {[%clk 0:01:17]} 33. Bb1 {[%clk 0:01:02]}  f4+ {[%clk 0:01:13]} 34. Kd4 {[%clk 0:00:58]}  e5+ {[%clk 0:01:12]} 35. Kc3 {[%clk 0:00:59]}  Bf1 {[%clk 0:01:10]} 36. g3 {[%clk 0:00:55]}  Bg2 {[%clk 0:01:06]} 37. Be4 {[%clk 0:00:53]}  b6 {[%clk 0:01:04]} 38. gxf4 {[%clk 0:00:48]}  exf4 {[%clk 0:00:50]} 39. Kd4 {[%clk 0:00:47]}  h5 {[%clk 0:00:40]} 40. Ba8 {[%clk 0:00:22]}  g4 {[%clk 0:00:36]} 41. fxg4 {[%clk 0:00:22]}  Bxa8 {[%clk 0:00:36]} 42. gxh5 {[%clk 0:00:22]}  f3 {[%clk 0:00:29]} 43. Ke3 {[%clk 0:00:18]}  Ke5 {[%clk 0:00:29]} 44. axb6 {[%clk 0:00:03]}  axb6 {[%clk 0:00:30]} 45. h3 {[%clk 0:00:01]}  Kf6 {[%clk 0:00:31]} 46. h4 {[%clk 0:00:01]}  Kg7 {[%clk 0:00:31]} 47. Kf2 {[%clk 0:00:01]}  Kh6 {[%clk 0:00:32]} 48. Kg3 {[%clk 0:00:01]}  Kxh5 {[%clk 0:00:32]} 49. b5 {[%clk 0:00:01]}  Bb7 {[%clk 0:00:31]} 0-1


[Site "https://www.chess.com"]

[Event "Titled Tuesday Blitz May 10 Late 2022"]
[White "Oganian, Miran"]
[Black "Jacobson, Aaron"]
[WhiteFideId "4122488"]
[BlackFideId "2089912"]
[WhiteElo "2357"]
[BlackElo "2265"]
[Result "1-0"]
[Round "03"]
[TimeControl "180+1"]
[Date "2022.05.10"]
[WhiteClock "0:00:51"]
[BlackClock "0:00:05"]

1. e4 {[%clk 0:02:59]}  d5 {[%clk 0:02:55]} 2. exd5 {[%clk 0:02:59]}  Nf6 {[%clk 0:02:56]} 3. Nc3 {[%clk 0:02:58]}  Nxd5 {[%clk 0:02:56]} 4. d4 {[%clk 0:02:58]}  Bf5 {[%clk 0:02:56]} 5. Bc4 {[%clk 0:02:53]}  e6 {[%clk 0:02:56]} 6. Nf3 {[%clk 0:02:51]}  Be7 {[%clk 0:02:56]} 7. O-O {[%clk 0:02:51]}  O-O {[%clk 0:02:56]} 8. Ne5 {[%clk 0:02:39]}  Nb6 {[%clk 0:02:54]} 9. Be2 {[%clk 0:02:28]}  c5 {[%clk 0:02:52]} 10. Bf3 {[%clk 0:02:22]}  Qc8 {[%clk 0:02:30]} 11. d5 {[%clk 0:02:22]}  exd5 {[%clk 0:02:20]} 12. Nxd5 {[%clk 0:02:23]}  Nxd5 {[%clk 0:02:20]} 13. Bxd5 {[%clk 0:02:23]}  Nd7 {[%clk 0:02:13]} 14. Nxd7 {[%clk 0:01:56]}  Qxd7 {[%clk 0:02:09]} 15. Qf3 {[%clk 0:01:55]}  Bg4 {[%clk 0:02:04]} 16. Qb3 {[%clk 0:01:49]}  Rad8 {[%clk 0:01:33]} 17. c4 {[%clk 0:01:48]}  b5 {[%clk 0:01:24]} 18. h3 {[%clk 0:01:41]}  Bh5 {[%clk 0:00:49]} 19. Be3 {[%clk 0:01:35]}  Rb8 {[%clk 0:00:35]} 20. Qd3 {[%clk 0:01:19]}  Rfd8 {[%clk 0:00:27]} 21. b3 {[%clk 0:01:18]}  Bg6 {[%clk 0:00:25]} 22. Qe2 {[%clk 0:01:17]}  bxc4 {[%clk 0:00:21]} 23. bxc4 {[%clk 0:01:17]}  Bf6 {[%clk 0:00:16]} 24. Rad1 {[%clk 0:01:17]}  Qc7 {[%clk 0:00:15]} 25. Qf3 {[%clk 0:01:17]}  Re8 {[%clk 0:00:12]} 26. Rfe1 {[%clk 0:01:15]}  Rbd8 {[%clk 0:00:12]} 27. Bf4 {[%clk 0:01:14]}  Be5 {[%clk 0:00:11]} 28. Bxe5 {[%clk 0:00:52]}  Rxe5 {[%clk 0:00:11]} 29. Bxf7+ {[%clk 0:00:53]}  Bxf7 {[%clk 0:00:06]} 30. Rxd8+ {[%clk 0:00:52]}  Re8 {[%clk 0:00:05]} 31. Rdxe8+ {[%clk 0:00:51]} 1-0


[Site "https://www.chess.com"]

[Event "Titled Tuesday Blitz May 10 Late 2022"]
[White "Ohanyan, Emin"]
[Black "Prohorov, Olexandr"]
[WhiteFideId "13312022"]
[BlackFideId "14105578"]
[WhiteElo "1927"]
[BlackElo "1993"]
[Result "1-0"]
[Round "03"]
[TimeControl "180+1"]
[Date "2022.05.11"]
[WhiteClock "0:00:01"]
[BlackClock "0:00:02"]

1. e4 {[%clk 0:03:00]}  c5 {[%clk 0:02:57]} 2. Nf3 {[%clk 0:02:59]}  e6 {[%clk 0:02:54]} 3. d4 {[%clk 0:02:58]}  cxd4 {[%clk 0:02:54]} 4. Nxd4 {[%clk 0:02:59]}  Qb6 {[%clk 0:02:55]} 5. Nc3 {[%clk 0:02:55]}  Bc5 {[%clk 0:02:55]} 6. Be3 {[%clk 0:02:55]}  Nf6 {[%clk 0:02:54]} 7. Na4 {[%clk 0:02:47]}  Qa5+ {[%clk 0:02:51]} 8. c3 {[%clk 0:02:47]}  Bxd4 {[%clk 0:02:42]} 9. Bxd4 {[%clk 0:02:15]}  Nc6 {[%clk 0:02:42]} 10. b4 {[%clk 0:02:08]}  Qc7 {[%clk 0:02:38]} 11. Bd3 {[%clk 0:01:52]}  b6 {[%clk 0:02:28]} 12. O-O {[%clk 0:00:56]}  Bb7 {[%clk 0:02:28]} 13. Qe2 {[%clk 0:00:54]}  d6 {[%clk 0:02:16]} 14. Nb2 {[%clk 0:00:52]}  Nxd4 {[%clk 0:02:12]} 15. cxd4 {[%clk 0:00:51]}  O-O {[%clk 0:02:12]} 16. Rac1 {[%clk 0:00:50]}  Qe7 {[%clk 0:02:04]} 17. f3 {[%clk 0:00:45]}  Rac8 {[%clk 0:02:00]} 18. Qd2 {[%clk 0:00:45]}  Rfd8 {[%clk 0:01:54]} 19. Rc3 {[%clk 0:00:41]}  Rxc3 {[%clk 0:01:43]} 20. Qxc3 {[%clk 0:00:42]}  Rc8 {[%clk 0:01:42]} 21. Qd2 {[%clk 0:00:43]}  Qc7 {[%clk 0:01:37]} 22. Kf2 {[%clk 0:00:42]}  Nd7 {[%clk 0:01:25]} 23. Nd1 {[%clk 0:00:28]}  h6 {[%clk 0:01:09]} 24. Ne3 {[%clk 0:00:27]}  d5 {[%clk 0:01:05]} 25. e5 {[%clk 0:00:27]}  Qc3 {[%clk 0:00:52]} 26. Ke2 {[%clk 0:00:23]}  Qa3 {[%clk 0:00:45]} 27. Rb1 {[%clk 0:00:19]}  Nb8 {[%clk 0:00:35]} 28. Rb3 {[%clk 0:00:17]}  Qa4 {[%clk 0:00:33]} 29. Bc2 {[%clk 0:00:17]}  Ba6+ {[%clk 0:00:27]} 30. Ke1 {[%clk 0:00:15]}  Bc4 {[%clk 0:00:24]} 31. Rc3 {[%clk 0:00:11]}  Qxb4 {[%clk 0:00:20]} 32. a3 {[%clk 0:00:11]}  Qe7 {[%clk 0:00:16]} 33. f4 {[%clk 0:00:12]}  b5 {[%clk 0:00:16]} 34. f5 {[%clk 0:00:12]}  a5 {[%clk 0:00:15]} 35. f6 {[%clk 0:00:12]}  gxf6 {[%clk 0:00:15]} 36. Ng4 {[%clk 0:00:12]}  fxe5 {[%clk 0:00:13]} 37. Qxh6 {[%clk 0:00:12]}  f5 {[%clk 0:00:10]} 38. Rg3 {[%clk 0:00:08]}  Kf7 {[%clk 0:00:07]} 39. Nxe5+ {[%clk 0:00:08]}  Ke8 {[%clk 0:00:07]} 40. Rg8+ {[%clk 0:00:01]}  Qf8 {[%clk 0:00:04]} 41. Qxe6+ {[%clk 0:00:01]}  Kd8 {[%clk 0:00:04]} 42. Rxf8+ {[%clk 0:00:01]}  Kc7 {[%clk 0:00:04]} 43. Rxc8+ {[%clk 0:00:02]}  Kb7 {[%clk 0:00:04]} 44. Rxb8+ {[%clk 0:00:01]}  Kxb8 {[%clk 0:00:04]} 45. Qb6+ {[%clk 0:00:02]}  Kc8 {[%clk 0:00:04]} 46. Qxa5 {[%clk 0:00:03]}  Kb7 {[%clk 0:00:04]} 47. Bxf5 {[%clk 0:00:03]}  Kb8 {[%clk 0:00:02]} 48. g3 {[%clk 0:00:01]} 1-0


[Site "https://www.chess.com"]

[Event "Titled Tuesday Blitz May 10 Late 2022"]
[White "Papasimakopoulos, Alexandros"]
[Black "Hamley, Ryan"]
[WhiteFideId "4244125"]
[BlackFideId "30959497"]
[WhiteElo "2340"]
[BlackElo "2505"]
[Result "1-0"]
[Round "03"]
[TimeControl "180+1"]
[Date "2022.05.11"]
[WhiteClock "0:01:26"]
[BlackClock "0:00:17"]

1. d4 {[%clk 0:03:00]}  Nf6 {[%clk 0:02:58]} 2. c4 {[%clk 0:02:51]}  e6 {[%clk 0:02:57]} 3. Nc3 {[%clk 0:02:52]}  d5 {[%clk 0:02:58]} 4. cxd5 {[%clk 0:02:52]}  Nxd5 {[%clk 0:02:58]} 5. e4 {[%clk 0:02:52]}  Nxc3 {[%clk 0:02:58]} 6. bxc3 {[%clk 0:02:53]}  c5 {[%clk 0:02:59]} 7. Rb1 {[%clk 0:02:53]}  Be7 {[%clk 0:02:58]} 8. Nf3 {[%clk 0:02:53]}  O-O {[%clk 0:02:59]} 9. Bc4 {[%clk 0:02:54]}  Nd7 {[%clk 0:02:59]} 10. O-O {[%clk 0:02:54]}  b6 {[%clk 0:03:00]} 11. Qe2 {[%clk 0:02:54]}  Bb7 {[%clk 0:03:00]} 12. Rd1 {[%clk 0:02:55]}  Qc7 {[%clk 0:02:59]} 13. Ba6 {[%clk 0:02:50]}  Rfd8 {[%clk 0:02:55]} 14. Bxb7 {[%clk 0:02:50]}  Qxb7 {[%clk 0:02:56]} 15. Bf4 {[%clk 0:02:50]}  Rac8 {[%clk 0:02:53]} 16. d5 {[%clk 0:02:50]}  exd5 {[%clk 0:02:52]} 17. exd5 {[%clk 0:02:51]}  Bf6 {[%clk 0:02:50]} 18. c4 {[%clk 0:02:51]}  Re8 {[%clk 0:02:49]} 19. Qd3 {[%clk 0:02:52]}  Qa6 {[%clk 0:02:47]} 20. Qc2 {[%clk 0:02:48]}  Qa3 {[%clk 0:02:31]} 21. Rb3 {[%clk 0:02:46]}  Qa4 {[%clk 0:02:30]} 22. Rb2 {[%clk 0:02:44]}  Qa3 {[%clk 0:02:24]} 23. Rb3 {[%clk 0:02:44]}  Qa4 {[%clk 0:02:24]} 24. h3 {[%clk 0:02:39]}  h6 {[%clk 0:02:20]} 25. Rc3 {[%clk 0:02:38]}  Qb4 {[%clk 0:02:16]} 26. Rb3 {[%clk 0:02:38]}  Qa4 {[%clk 0:02:16]} 27. Rc3 {[%clk 0:02:27]}  Qb4 {[%clk 0:02:12]} 28. Re3 {[%clk 0:02:27]}  Rxe3 {[%clk 0:02:02]} 29. Bxe3 {[%clk 0:02:28]}  Re8 {[%clk 0:02:02]} 30. a4 {[%clk 0:02:28]}  Qa3 {[%clk 0:01:38]} 31. Rb1 {[%clk 0:02:26]}  h5 {[%clk 0:01:20]} 32. Qb3 {[%clk 0:02:21]}  Qxb3 {[%clk 0:01:18]} 33. Rxb3 {[%clk 0:02:22]}  Kf8 {[%clk 0:01:06]} 34. a5 {[%clk 0:02:14]}  Ke7 {[%clk 0:01:06]} 35. Nd2 {[%clk 0:02:08]}  Kd8 {[%clk 0:01:01]} 36. Kf1 {[%clk 0:02:05]}  g5 {[%clk 0:00:57]} 37. axb6 {[%clk 0:02:04]}  axb6 {[%clk 0:00:56]} 38. g4 {[%clk 0:01:58]}  hxg4 {[%clk 0:00:53]} 39. hxg4 {[%clk 0:01:59]}  Kc7 {[%clk 0:00:53]} 40. Nf3 {[%clk 0:01:56]}  Re4 {[%clk 0:00:49]} 41. Bxg5 {[%clk 0:01:32]}  Rxc4 {[%clk 0:00:29]} 42. Bxf6 {[%clk 0:01:32]}  Nxf6 {[%clk 0:00:30]} 43. d6+ {[%clk 0:01:33]}  Kxd6 {[%clk 0:00:20]} 44. Rxb6+ {[%clk 0:01:33]}  Ke7 {[%clk 0:00:20]} 45. Rb7+ {[%clk 0:01:28]}  Kf8 {[%clk 0:00:20]} 46. Ne5 {[%clk 0:01:26]}  Re4 {[%clk 0:00:19]} 47. Rxf7+ {[%clk 0:01:25]}  Kg8 {[%clk 0:00:19]} 48. Rxf6 {[%clk 0:01:25]}  Rxe5 {[%clk 0:00:19]} 49. Kg2 {[%clk 0:01:23]}  Kg7 {[%clk 0:00:19]} 50. Rc6 {[%clk 0:01:23]}  Rd5 {[%clk 0:00:19]} 51. Kg3 {[%clk 0:01:23]}  Kf7 {[%clk 0:00:18]} 52. f4 {[%clk 0:01:23]}  Kg7 {[%clk 0:00:18]} 53. g5 {[%clk 0:01:23]}  Kf7 {[%clk 0:00:17]} 54. Kg4 {[%clk 0:01:24]}  Kg7 {[%clk 0:00:18]} 55. Rc7+ {[%clk 0:01:24]}  Kg6 {[%clk 0:00:18]} 56. f5+ {[%clk 0:01:25]}  Rxf5 {[%clk 0:00:17]} 57. Rc6+ {[%clk 0:01:26]} 1-0


[Site "https://www.chess.com"]

[Event "Titled Tuesday Blitz May 10 Late 2022"]
[White "Papp, Petra"]
[Black "Alexiadis, Hristos"]
[WhiteFideId "739049"]
[BlackFideId "4249623"]
[WhiteElo "2259"]
[BlackElo "2416"]
[Result "0-1"]
[Round "03"]
[TimeControl "180+1"]
[Date "2022.05.11"]
[WhiteClock "0:00:23"]
[BlackClock "0:01:35"]

1. d4 {[%clk 0:02:58]}  Nf6 {[%clk 0:02:59]} 2. Nf3 {[%clk 0:02:55]}  g6 {[%clk 0:02:59]} 3. g3 {[%clk 0:02:55]}  Bg7 {[%clk 0:02:59]} 4. Bg2 {[%clk 0:02:56]}  O-O {[%clk 0:03:00]} 5. O-O {[%clk 0:02:56]}  d6 {[%clk 0:03:01]} 6. Re1 {[%clk 0:02:55]}  c6 {[%clk 0:02:59]} 7. e4 {[%clk 0:02:55]}  Bg4 {[%clk 0:03:00]} 8. Nc3 {[%clk 0:02:51]}  Na6 {[%clk 0:02:58]} 9. h3 {[%clk 0:02:50]}  Bxf3 {[%clk 0:02:59]} 10. Bxf3 {[%clk 0:02:50]}  Nd7 {[%clk 0:02:59]} 11. Bg2 {[%clk 0:02:44]}  Rc8 {[%clk 0:03:00]} 12. Be3 {[%clk 0:02:35]}  Re8 {[%clk 0:03:00]} 13. Qd2 {[%clk 0:02:33]}  c5 {[%clk 0:02:58]} 14. dxc5 {[%clk 0:02:30]}  Naxc5 {[%clk 0:02:58]} 15. Bd4 {[%clk 0:02:18]}  Bxd4 {[%clk 0:02:51]} 16. Qxd4 {[%clk 0:02:18]}  a6 {[%clk 0:02:52]} 17. Nd5 {[%clk 0:02:15]}  Ne6 {[%clk 0:02:49]} 18. Qd2 {[%clk 0:02:11]}  Ne5 {[%clk 0:02:48]} 19. c3 {[%clk 0:02:06]}  Nc7 {[%clk 0:02:45]} 20. f4 {[%clk 0:02:03]}  Nc4 {[%clk 0:02:41]} 21. Qe2 {[%clk 0:01:59]}  Nxd5 {[%clk 0:02:41]} 22. exd5 {[%clk 0:01:59]}  Qb6+ {[%clk 0:02:42]} 23. Kh1 {[%clk 0:01:49]}  Qxb2 {[%clk 0:02:33]} 24. Qg4 {[%clk 0:01:15]}  Qxc3 {[%clk 0:02:29]} 25. Rac1 {[%clk 0:01:14]}  Qf6 {[%clk 0:02:28]} 26. a4 {[%clk 0:01:11]}  b5 {[%clk 0:02:28]} 27. Bf1 {[%clk 0:01:07]}  Rc5 {[%clk 0:02:24]} 28. Re4 {[%clk 0:00:57]}  Rxd5 {[%clk 0:02:13]} 29. Bxc4 {[%clk 0:00:52]}  bxc4 {[%clk 0:02:12]} 30. Rexc4 {[%clk 0:00:52]}  Kg7 {[%clk 0:02:09]} 31. Qd7 {[%clk 0:00:50]}  Rf8 {[%clk 0:01:49]} 32. Re4 {[%clk 0:00:43]}  e6 {[%clk 0:01:48]} 33. Rce1 {[%clk 0:00:40]}  Kg8 {[%clk 0:01:44]} 34. Qb7 {[%clk 0:00:37]}  Rd2 {[%clk 0:01:38]} 35. R4e2 {[%clk 0:00:27]}  Rxe2 {[%clk 0:01:37]} 36. Rxe2 {[%clk 0:00:26]}  Qa1+ {[%clk 0:01:37]} 37. Kh2 {[%clk 0:00:24]}  Qxa4 {[%clk 0:01:38]} 38. h4 {[%clk 0:00:25]}  Qb5 {[%clk 0:01:37]} 39. Qe7 {[%clk 0:00:23]}  Qxe2+ {[%clk 0:01:35]} 0-1


[Site "https://www.chess.com"]

[Event "Titled Tuesday Blitz May 10 Late 2022"]
[White "Petrova, Irina"]
[Black "Voiteanu, Gabriel"]
[WhiteFideId "14124122"]
[BlackFideId "1208810"]
[WhiteElo "1993"]
[BlackElo "2001"]
[Result "0-1"]
[Round "03"]
[TimeControl "180+1"]
[Date "2022.05.11"]
[WhiteClock "0:00:18"]
[BlackClock "0:00:12"]

1. e4 {[%clk 0:03:00]}  e5 {[%clk 0:02:59]} 2. Nf3 {[%clk 0:03:00]}  Nc6 {[%clk 0:02:52]} 3. Bb5 {[%clk 0:03:00]}  Nf6 {[%clk 0:02:50]} 4. d3 {[%clk 0:02:59]}  Bc5 {[%clk 0:02:47]} 5. Nc3 {[%clk 0:02:59]}  O-O {[%clk 0:02:44]} 6. Bg5 {[%clk 0:02:57]}  h6 {[%clk 0:02:40]} 7. Bh4 {[%clk 0:02:56]}  Bb4 {[%clk 0:02:15]} 8. O-O {[%clk 0:02:50]}  Bxc3 {[%clk 0:02:14]} 9. bxc3 {[%clk 0:02:51]}  d6 {[%clk 0:02:13]} 10. Re1 {[%clk 0:02:41]}  Bg4 {[%clk 0:02:11]} 11. h3 {[%clk 0:02:41]}  Bh5 {[%clk 0:02:11]} 12. d4 {[%clk 0:02:23]}  a6 {[%clk 0:01:57]} 13. Bxc6 {[%clk 0:02:22]}  bxc6 {[%clk 0:01:57]} 14. dxe5 {[%clk 0:02:22]}  Bxf3 {[%clk 0:01:51]} 15. Qxf3 {[%clk 0:02:18]}  dxe5 {[%clk 0:01:51]} 16. Rad1 {[%clk 0:02:14]}  Qe7 {[%clk 0:01:51]} 17. Bxf6 {[%clk 0:02:11]}  Qxf6 {[%clk 0:01:47]} 18. Qxf6 {[%clk 0:02:10]}  gxf6 {[%clk 0:01:48]} 19. Rd7 {[%clk 0:02:10]}  Ra7 {[%clk 0:01:39]} 20. Re3 {[%clk 0:02:10]}  Rb7 {[%clk 0:01:30]} 21. Rg3+ {[%clk 0:02:08]}  Kh7 {[%clk 0:01:28]} 22. h4 {[%clk 0:01:58]}  a5 {[%clk 0:01:16]} 23. h5 {[%clk 0:01:57]}  a4 {[%clk 0:01:15]} 24. Kh2 {[%clk 0:01:54]}  a3 {[%clk 0:01:14]} 25. c4 {[%clk 0:01:54]}  Rb2 {[%clk 0:01:07]} 26. Rxa3 {[%clk 0:01:51]}  Rxc2 {[%clk 0:01:04]} 27. Rxc7 {[%clk 0:01:51]}  Rxc4 {[%clk 0:01:04]} 28. Ra6 {[%clk 0:01:46]}  Rxe4 {[%clk 0:01:02]} 29. Raxc6 {[%clk 0:01:46]}  Kg7 {[%clk 0:00:52]} 30. g3 {[%clk 0:01:42]}  Ra4 {[%clk 0:00:49]} 31. Rc2 {[%clk 0:01:22]}  Rfa8 {[%clk 0:00:48]} 32. Kg2 {[%clk 0:01:19]}  Rxa2 {[%clk 0:00:47]} 33. Rxa2 {[%clk 0:01:09]}  Rxa2 {[%clk 0:00:48]} 34. Rb7 {[%clk 0:01:09]}  e4 {[%clk 0:00:42]} 35. Kg1 {[%clk 0:01:07]}  f5 {[%clk 0:00:42]} 36. Rb6 {[%clk 0:01:07]}  Ra5 {[%clk 0:00:35]} 37. Kg2 {[%clk 0:01:04]}  f4 {[%clk 0:00:35]} 38. gxf4 {[%clk 0:01:03]}  Rxh5 {[%clk 0:00:34]} 39. Rb4 {[%clk 0:01:03]}  f5 {[%clk 0:00:34]} 40. Rb7+ {[%clk 0:00:59]}  Kf6 {[%clk 0:00:33]} 41. Rb6+ {[%clk 0:00:59]}  Ke7 {[%clk 0:00:34]} 42. Ra6 {[%clk 0:00:56]}  Rh4 {[%clk 0:00:33]} 43. Kg3 {[%clk 0:00:53]}  Rg4+ {[%clk 0:00:33]} 44. Kh3 {[%clk 0:00:51]}  Rxf4 {[%clk 0:00:33]} 45. Kg3 {[%clk 0:00:51]}  Rg4+ {[%clk 0:00:33]} 46. Kh3 {[%clk 0:00:51]}  h5 {[%clk 0:00:31]} 47. Rh6 {[%clk 0:00:49]}  h4 {[%clk 0:00:31]} 48. Ra6 {[%clk 0:00:45]}  Kf7 {[%clk 0:00:31]} 49. Rb6 {[%clk 0:00:42]}  Kg7 {[%clk 0:00:31]} 50. Ra6 {[%clk 0:00:40]}  Rf4 {[%clk 0:00:28]} 51. Kg2 {[%clk 0:00:39]}  h3+ {[%clk 0:00:28]} 52. Kxh3 {[%clk 0:00:39]}  Rxf2 {[%clk 0:00:27]} 53. Kg3 {[%clk 0:00:38]}  Rf3+ {[%clk 0:00:27]} 54. Kg2 {[%clk 0:00:37]}  Kf7 {[%clk 0:00:20]} 55. Rb6 {[%clk 0:00:36]}  Rd3 {[%clk 0:00:18]} 56. Kf2 {[%clk 0:00:36]}  Ke7 {[%clk 0:00:18]} 57. Ke2 {[%clk 0:00:34]}  Rd6 {[%clk 0:00:18]} 58. Rb5 {[%clk 0:00:33]}  Ke6 {[%clk 0:00:18]} 59. Ke3 {[%clk 0:00:33]}  Rd5 {[%clk 0:00:18]} 60. Rb8 {[%clk 0:00:32]}  Rd3+ {[%clk 0:00:18]} 61. Ke2 {[%clk 0:00:32]}  Ke5 {[%clk 0:00:17]} 62. Rh8 {[%clk 0:00:30]}  Ra3 {[%clk 0:00:16]} 63. Rh7 {[%clk 0:00:27]}  f4 {[%clk 0:00:16]} 64. Rh5+ {[%clk 0:00:26]}  Kf6 {[%clk 0:00:15]} 65. Rb5 {[%clk 0:00:25]}  Ra2+ {[%clk 0:00:15]} 66. Ke1 {[%clk 0:00:25]}  Ke6 {[%clk 0:00:15]} 67. Rh5 {[%clk 0:00:23]}  e3 {[%clk 0:00:15]} 68. Rb5 {[%clk 0:00:22]}  f3 {[%clk 0:00:15]} 69. Rb1 {[%clk 0:00:20]}  Rh2 {[%clk 0:00:12]} 70. Rb6+ {[%clk 0:00:18]}  Kd5 {[%clk 0:00:12]} 0-1


[Site "https://www.chess.com"]

[Event "Titled Tuesday Blitz May 10 Late 2022"]
[White "Piliczewski, Bogusz"]
[Black "Purtseladze, Maka"]
[WhiteFideId "1104144"]
[BlackFideId "13602659"]
[WhiteElo "1896"]
[BlackElo "2224"]
[Result "0-1"]
[Round "03"]
[TimeControl "180+1"]
[Date "2022.05.11"]
[WhiteClock "0:00:03"]
[BlackClock "0:01:02"]

1. d4 {[%clk 0:03:00]}  Nf6 {[%clk 0:02:59]} 2. Nf3 {[%clk 0:03:00]}  e6 {[%clk 0:02:57]} 3. Bf4 {[%clk 0:02:59]}  c5 {[%clk 0:02:51]} 4. c3 {[%clk 0:02:57]}  d5 {[%clk 0:02:51]} 5. e3 {[%clk 0:02:56]}  Bd6 {[%clk 0:02:51]} 6. Ne5 {[%clk 0:02:53]}  O-O {[%clk 0:02:50]} 7. Bd3 {[%clk 0:02:51]}  Qe7 {[%clk 0:02:29]} 8. Nd2 {[%clk 0:02:49]}  Nfd7 {[%clk 0:02:24]} 9. Nxd7 {[%clk 0:02:10]}  Nxd7 {[%clk 0:02:16]} 10. Bxd6 {[%clk 0:02:08]}  Qxd6 {[%clk 0:02:17]} 11. dxc5 {[%clk 0:01:43]}  Nxc5 {[%clk 0:02:16]} 12. Bc2 {[%clk 0:01:43]}  b6 {[%clk 0:01:58]} 13. O-O {[%clk 0:01:39]}  Ba6 {[%clk 0:01:58]} 14. Re1 {[%clk 0:01:39]}  Nd3 {[%clk 0:01:56]} 15. Bxd3 {[%clk 0:01:39]}  Bxd3 {[%clk 0:01:57]} 16. e4 {[%clk 0:01:26]}  Rfd8 {[%clk 0:01:47]} 17. Nf3 {[%clk 0:00:57]}  Bxe4 {[%clk 0:01:28]} 18. Ng5 {[%clk 0:00:55]}  Bg6 {[%clk 0:01:27]} 19. h4 {[%clk 0:00:49]}  h6 {[%clk 0:01:26]} 20. h5 {[%clk 0:00:42]}  Bf5 {[%clk 0:01:17]} 21. g4 {[%clk 0:00:22]}  Qf4 {[%clk 0:01:07]} 22. gxf5 {[%clk 0:00:12]}  Qxg5+ {[%clk 0:01:05]} 23. Kf1 {[%clk 0:00:10]}  Qxf5 {[%clk 0:01:05]} 24. Qe2 {[%clk 0:00:08]}  Qh3+ {[%clk 0:01:04]} 25. Kg1 {[%clk 0:00:07]}  Rac8 {[%clk 0:01:03]} 26. Rad1 {[%clk 0:00:04]}  Rc4 {[%clk 0:01:03]} 27. Rd3 {[%clk 0:00:03]}  Rg4+ {[%clk 0:01:02]} 0-1


[Site "https://www.chess.com"]